[Event "10th LCC FIDE Open 2018"]
[Site "London"]
[Date "2018.12.09"]
[Round "1"]
[White "Rogacewicz, Mikolaj"]
[Black "Gullaksen, Eirik"]
[Result "0-1"]
[ECO "A40"]
[WhiteElo "1925"]
[BlackElo "2349"]
[Annotator "ChessBase"]
[PlyCount "94"]
[EventDate "2018.12.09"]
[EventType "swiss"]
[EventCountry "ENG"]
[SourceTitle "playchess.com"]
[Source "ChessBase"]
[SourceQuality "1"]
[TimeControl "40/5400+30:1800+30"]

1. d4 {[%emt 0:00:00]} g6 {[%emt 0:00:00]} 2. c4 {[%emt 0:00:35]} Bg7 {[%emt 0:00:00]} 3. e4 {[%emt 0:01:19]} Nc6 {[%emt 0:00:45]} 4. Be3 {[%emt 0:02:59]} e5 {[%emt 0:00:27]} 5. Ne2 {[%emt 0:04:23]} exd4 {[%emt 0:00:36]} 6. Nxd4 {[%emt 0:00:52]} Qf6 {[%emt 0:00:31]} 7. Nxc6 {[%emt 0:01:18]} bxc6 {[%emt 0:00:10]} 8. Nc3 {[%emt 0:02:18]} Ne7 {[%emt 0:00:44]} 9. Be2 {[%emt 0:05:51]} O-O {[%emt 0:01:09]} 10. O-O {[%emt 0:08:04]} d6 {[%emt 0:05:37]} 11. Qd2 {[%emt 0:07:15]} Bb7 {[%emt 0:03:25]} 12. Rfd1 {[%emt 0:03:56]} c5 {[%emt 0:08:16]} 13. Bf3 {[%emt 0:15:26]} Rab8 {[%emt 0:08:40]} 14. Nb5 {[%emt 0:05:47]} Nc6 {[%emt 0:11:49]} 15. Bg5 {[%emt 0:06:50]} Qxb2 {[%emt 0:00:49]} 16. Qxb2 {[%emt 0:01:48]} Bxb2 {[%emt 0:00:11]} 17. Rab1 {[%emt 0:00:24]} Be5 {[%emt 0:00:36]} 18. Nxc7 {[%emt 0:02:34]} Nd4 {[%emt 0:01:53]} 19. Nb5 {[%emt 0:08:10]} Nxb5 {[%emt 0:04:47]} 20. cxb5 {[%emt 0:00:35]} f6 {[%emt 0:02:18]} 21. Bc1 {[%emt 0:02:01]} f5 {[%emt 0:03:55]} 22. exf5 {[%emt 0:02:49]} Bxf3 {[%emt 0:00:25]} 23. gxf3 {[%emt 0:00:10]} Rxf5 {[%emt 0:05:02]} 24. f4 {[%emt 0:00:34]} Bd4 {[%emt 0:06:25]} 25. Be3 {[%emt 0:00:36]} Bxe3 {[%emt 0:02:14]} 26. fxe3 {[%emt 0:00:05]} d5 {[%emt 0:00:06]} 27. Kg2 {[%emt 0:01:39]} g5 {[%emt 0:01:32]} 28. Kf3 {[%emt 0:05:18]} gxf4 {[%emt 0:00:17]} 29. exf4 {[%emt 0:00:35]} Rbf8 {[%emt 0:02:50]} 30. Kg3 {[%emt 0:01:23]} d4 {[%emt 0:02:51]} 31. Rdc1 {[%emt 0:01:56]} R8f6 {[%emt 0:09:14]} 32. Rc4 {[%emt 0:02:39]} Rd6 {[%emt 0:01:45]} 33. Rbc1 {[%emt 0:00:52]} Rdd5 {[%emt 0:01:52]} 34. Kf3 {[%emt 0:00:51]} Kf7 {[%emt 0:00:11]} 35. Ra4 {[%emt 0:01:46]} Rd7 {[%emt 0:00:24]} 36. Ke4 {[%emt 0:00:41]} Rh5 {[%emt 0:00:32]} 37. f5 {[%emt 0:02:22]} d3 {[%emt 0:00:17]} 38. Ra3 {[%emt 0:01:31]} d2 {[%emt 0:01:22]} 39. Rd1 {[%emt 0:00:06]} Rh4+ {[%emt 0:00:10]} 40. Ke5 {[%emt 0:00:26]} Rxh2 {[%emt 0:00:14]} 41. Re3 {[%emt 0:03:16]} Re7+ {[%emt 0:01:48]} 42. Kf4 {[%emt 0:00:05]} Rh4+ {[%emt 0:00:14]} 43. Kg3 {[%emt 0:00:18]} Rxe3+ {[%emt 0:00:13]} 44. Kxh4 {[%emt 0:00:15]} Rd3 {[%emt 0:00:14]} 45. a4 {[%emt 0:00:38]} c4 {[%emt 0:00:08]} 46. a5 {[%emt 0:00:26]} c3 {[%emt 0:00:10]} 47. b6 {[%emt 0:00:33]} axb6 {[%emt 0:00:10]} 0-1

[Event "10th LCC FIDE Open 2018"]
[Site "London"]
[Date "2018.12.09"]
[Round "1"]
[White "Cole, James"]
[Black "Bradbury, Neil H"]
[Result "0-1"]
[ECO "A30"]
[WhiteElo "1914"]
[BlackElo "2336"]
[Annotator "NA"]
[PlyCount "74"]
[EventDate "2018.12.09"]
[EventType "swiss"]
[EventCountry "ENG"]
[SourceTitle "playchess.com"]
[Source "ChessBase"]
[SourceQuality "1"]
[TimeControl "40/5400+30:1800+30"]

1. d4 {[%emt 0:00:00]} Nf6 {[%emt 0:00:00]} 2. c4 {[%emt 0:00:00]} e6 {[%emt 0:00:13]} 3. g3 {[%emt 0:00:00]} c5 {[%emt 0:01:22]} 4. Nf3 {[%emt 0:01:33]} b6 {[%emt 0:09:03]} 5. Bg2 {[%emt 0:01:20]} Bb7 {[%emt 0:00:35]} 6. O-O {[%emt 0:02:20]} Be7 {[%emt 0:13:13]} 7. Nc3 {[%emt 0:00:40]} cxd4 {[%emt 0:07:44]} 8. Nxd4 {[%emt 0:11:59]} Bxg2 {[%emt 0:00:10]} 9. Kxg2 {[%emt 0:00:03]} Qc8 {[%emt 0:04:03]} 10. Qd3 {[%emt 0:08:25]} O-O {[%emt 0:07:05] A30: Symmetrical English: Double Fianchetto and Hedgehog} (10... Nc6 11. b3 O-O 12. Bb2 Ne5 13. Qe3 Neg4 14. Qf3 Ne5 15. Qf4 Qb7+ 16. Nf3 d6 17. Kg1 Nxf3+ 18. Qxf3 Qxf3 19. exf3 Rfc8 {½-½ (30) L'Ami,E (2639)-Meier,G (2639) Batumi 2018}) 11. Bg5 {[%emt 0:07:22]} Nc6 {[%emt 0:01:32]} 12. b3 {[%emt 0:07:19]} h6 {[%emt 0:02:53]} 13. Bxf6 $146 {[%emt 0:03:23]} ({Predecessor:} 13. Bc1 Rd8 14. Bb2 {½-½ (47) Schindler,C (2261)-Schoeneberg,M (2225) Germany 2013}) 13... Bxf6 {[%emt 0:00:08]} 14. e3 {[%emt 0:01:06]} Ne5 {[%emt 0:06:47]} 15. Qd2 {[%emt 0:01:52]} Qb7+ {[%emt 0:01:30]} 16. Kg1 {[%emt 0:03:59]} a6 {[%emt 0:04:07]} 17. f4 {[%emt 0:05:09]} Nc6 {[%emt 0:01:46]} 18. Rac1 {[%emt 0:00:31]} Rfd8 {[%emt 0:06:05]} 19. a4 {[%emt 0:10:22]} Na5 {[%emt 0:01:00]} 20. Rb1 {[%emt 0:02:36]} Rac8 {[%emt 0:00:16]} 21. e4 {[%emt 0:01:37]} Be7 {[%emt 0:04:15]} 22. Qd3 {[%emt 0:01:35]} Bc5 {[%emt 0:01:38]} 23. Rfd1 {[%emt 0:03:48]} Nc6 {[%emt 0:06:07]} 24. Nce2 {[%emt 0:00:25]} Nb4 {[%emt 0:03:39]} 25. Qe3 {[%emt 0:01:30]} b5 {[%emt 0:00:05]} 26. cxb5 {[%emt 0:00:30]} axb5 {[%emt 0:00:30]} 27. Rbc1 {[%emt 0:01:40]} bxa4 {[%emt 0:00:56]} 28. bxa4 {[%emt 0:00:19]} Qa7 {[%emt 0:00:49]} 29. Rd2 {[%emt 0:02:39]} d5 {[%emt 0:00:39]} 30. e5 {[%emt 0:00:30]} Bb6 {[%emt 0:00:30]} 31. Rxc8 {[%emt 0:00:30]} Rxc8 {[%emt 0:00:30]} 32. a5 $19 {[%emt 0:00:30]} Qxa5 {[%emt 0:00:30]} 33. Qb3 {[%emt 0:00:30]} Rc4 {[%emt 0:00:30]} 34. Kg2 {[%emt 0:00:30]} Qc5 {[%emt 0:00:30]} 35. f5 {[%emt 0:00:30]} Nc6 {[%emt 0:00:30]} 36. Nxc6 {[%emt 0:00:30]} Qf2+ {[%emt 0:00:30]} 37. Kh3 {[%emt 0:00:30]} Qf1# {[%emt 0:00:30]} 0-1

[Event "10th LCC FIDE Open 2018"]
[Site "London"]
[Date "2018.12.10"]
[Round "2"]
[White "Cherniaev, Alexander"]
[Black "Ogunshola, Olugbemiga (Ben)"]
[Result "1-0"]
[ECO "B23"]
[WhiteElo "2393"]
[BlackElo "2172"]
[Annotator "RC"]
[PlyCount "41"]
[EventDate "2018.12.09"]
[EventType "swiss"]
[EventCountry "ENG"]
[SourceTitle "playchess.com"]
[Source "ChessBase"]
[SourceQuality "1"]
[TimeControl "40/5400+30:1800+30"]

1. e4 {[%emt 0:00:19]} d6 {[%emt 0:00:34]} 2. Nc3 {[%emt 0:00:08]} c5 {[%emt 0:00:36]} 3. f4 {[%emt 0:00:09]} Nc6 {[%emt 0:02:36]} 4. Nf3 {[%emt 0:00:10]} g6 {[%emt 0:00:20]} 5. Bb5 {[%emt 0:02:25]} Bg7 {[%emt 0:00:59]} 6. O-O {[%emt 0:02:03]} Bd7 {[%emt 0:05:58]} 7. Kh1 {[%emt 0:01:16]} a6 {[%emt 0:04:04]} 8. Bxc6 {[%emt 0:00:25]} Bxc6 {[%emt 0:01:36]} 9. d3 {[%emt 0:00:10]} b6 {[%emt 0:11:13]} 10. Bd2 {[%emt 0:07:23]} Qd7 {[%emt 0:08:25]} 11. Qe2 {[%emt 0:10:14]} Nf6 {[%emt 0:10:51]} 12. e5 {[%emt 0:05:46]} Nd5 {[%emt 0:00:36]} 13. Ng5 {[%emt 0:01:38]} Nc7 {[%emt 0:10:10]} 14. exd6 {[%emt 0:04:45]} Qxd6 {[%emt 0:00:16]} 15. f5 {[%emt 0:00:13]} O-O {[%emt 0:03:12]} 16. Nce4 {[%emt 0:03:26]} Qd8 {[%emt 0:02:54]} 17. fxg6 {[%emt 0:28:02]} hxg6 {[%emt 0:00:26]} 18. Qg4 {[%emt 0:04:24]} Bxe4 {[%emt 0:01:04]} 19. Qh4 {[%emt 0:03:18]} Bxg2+ {[%emt 0:00:20]} 20. Kxg2 {[%emt 0:00:26]} Qd5+ {[%emt 0:00:02]} 21. Rf3 {[%emt 0:00:11]} 1-0

[Event "10th LCC FIDE Open 2018"]
[Site "London"]
[Date "2018.12.10"]
[Round "2"]
[White "Gullaksen, Eirik"]
[Black "Pollack, Oscar"]
[Result "1-0"]
[ECO "E73"]
[WhiteElo "2349"]
[BlackElo "2150"]
[Annotator "RC"]
[PlyCount "73"]
[EventDate "2018.12.09"]
[EventType "swiss"]
[EventCountry "ENG"]
[SourceTitle "playchess.com"]
[Source "ChessBase"]
[SourceQuality "1"]
[TimeControl "40/5400+30:1800+30"]

1. d4 {[%emt 0:00:00]} Nf6 {[%emt 0:00:00]} 2. c4 {[%emt 0:00:00]} d6 {[%emt 0:00:06]} 3. Nc3 {[%emt 0:00:52]} g6 {[%emt 0:00:55]} 4. e4 {[%emt 0:00:22]} Bg7 {[%emt 0:00:04]} 5. Be2 {[%emt 0:00:17]} O-O {[%emt 0:00:10]} 6. Be3 {[%emt 0:00:13]} e5 {[%emt 0:01:26]} 7. d5 {[%emt 0:00:12]} a5 {[%emt 0:00:50]} 8. g4 {[%emt 0:00:34]} Na6 {[%emt 0:01:40]} 9. f3 {[%emt 0:01:26]} Bd7 {[%emt 0:02:51]} 10. Qd2 {[%emt 0:00:41]} Nc5 {[%emt 0:01:35]} 11. h4 {[%emt 0:00:57]} c6 {[%emt 0:02:04]} 12. Nh3 {[%emt 0:07:39]} cxd5 {[%emt 0:03:02]} 13. cxd5 {[%emt 0:02:22]} Rb8 {[%emt 0:07:17]} 14. Nf2 {[%emt 0:02:04]} b5 {[%emt 0:02:43]} 15. Rc1 {[%emt 0:05:15]} Qe7 {[%emt 0:08:36]} 16. h5 {[%emt 0:03:17]} Rfc8 {[%emt 0:02:14]} 17. Kf1 {[%emt 0:13:07]} b4 {[%emt 0:05:13]} 18. Ncd1 {[%emt 0:00:47]} Rb7 {[%emt 0:00:44]} 19. Bxc5 {[%emt 0:08:35]} Rxc5 {[%emt 0:01:36]} 20. Rxc5 {[%emt 0:00:11]} dxc5 {[%emt 0:00:02]} 21. Ne3 {[%emt 0:02:27]} Ne8 {[%emt 0:02:41]} 22. Nc4 {[%emt 0:06:15]} Nd6 {[%emt 0:01:49]} 23. hxg6 {[%emt 0:00:42]} fxg6 {[%emt 0:00:54]} 24. Nxa5 {[%emt 0:01:24]} Ra7 {[%emt 0:00:25]} 25. Nc6 {[%emt 0:00:10]} Bxc6 {[%emt 0:00:55]} 26. dxc6 {[%emt 0:00:07]} Qe6 {[%emt 0:01:03]} 27. Kg2 {[%emt 0:05:29]} Rxa2 {[%emt 0:06:26]} 28. Rc1 {[%emt 0:02:19]} Ra5 {[%emt 0:03:22]} 29. c7 {[%emt 0:02:37]} Bf8 {[%emt 0:03:56]} 30. Qxd6 {[%emt 0:01:31]} Bxd6 {[%emt 0:06:10]} 31. Bc4 {[%emt 0:00:12]} Bxc7 {[%emt 0:00:09]} 32. Bxe6+ {[%emt 0:00:07]} Kf8 {[%emt 0:00:03]} 33. Rd1 {[%emt 0:01:04]} Ke7 {[%emt 0:03:28]} 34. Bc4 {[%emt 0:00:42]} Bd6 {[%emt 0:00:34]} 35. Rh1 {[%emt 0:00:38]} Kf6 {[%emt 0:01:08]} 36. Rxh7 {[%emt 0:00:24]} Ra8 {[%emt 0:02:57]} 37. g5+ {[%emt 0:00:10]} 1-0

[Event "10th LCC FIDE Open 2018"]
[Site "London"]
[Date "2018.12.10"]
[Round "2"]
[White "Van Zyl-Rudd, Jack"]
[Black "Sedykh, Mikhail"]
[Result "1-0"]
[ECO "A67"]
[WhiteElo "2306"]
[BlackElo "2118"]
[Annotator "NA RC"]
[PlyCount "61"]
[EventDate "2018.12.09"]
[EventType "swiss"]
[EventCountry "ENG"]
[SourceTitle "playchess.com"]
[Source "ChessBase"]
[SourceQuality "1"]
[TimeControl "40/5400+30:1800+30"]

1. d4 {[%emt 0:00:04]} Nf6 {[%emt 0:00:00]} 2. c4 {[%emt 0:00:30]} c5 {[%emt 0:00:00]} 3. d5 {[%emt 0:00:30]} e6 {[%emt 0:00:12]} 4. Nc3 {[%emt 0:00:30]} exd5 {[%emt 0:00:30]} 5. cxd5 {[%emt 0:00:30]} d6 {[%emt 0:00:30]} 6. e4 {[%emt 0:00:30]} g6 {[%emt 0:00:30]} 7. f4 {[%emt 0:00:30]} Bg7 {[%emt 0:00:30]} 8. Bb5+ {[%emt 0:00:30]} Nfd7 {[%emt 0:00:30]} 9. a4 {[%emt 0:00:30]} O-O {[%emt 0:00:30]} 10. Nf3 {[%emt 0:00:30]} Na6 {[%emt 0:00:30]} 11. O-O {[%emt 0:00:30]} Nb4 {[%emt 0:00:30]} 12. Be3 {[%emt 0:00:30]} a6 {[%emt 0:00:30] A67: Modern Benoni: Taimanov Variation} 13. Be2 {[%emt 0:00:30] LiveBook: 6 Games} Re8 {[%emt 0:00:30]} 14. Bf2 {[%emt 0:00:30]} Nf6 {[%emt 0:00:30]} 15. Nd2 {[%emt 0:00:30]} Rb8 {[%emt 0:00:30]} 16. Bg3 $146 {[%emt 0:00:30]} ({Predecessor:} 16. Bh4 Qc7 17. Kh1 Bd7 18. Bf3 Nd3 19. Nc4 Nxf4 20. Qd2 {1-0 (33) Mazur,S (2402)-Yilmaz,M (2482) Porto Carras 2010}) 16... Qd7 {[%emt 0:00:30]} 17. Bf3 {[%emt 0:00:30]} Ng4 {[%emt 0:00:30]} (17... b5 $11 {remains equal.}) 18. Nc4 {[%emt 0:00:30]} Bd4+ {[%emt 0:00:30]} 19. Kh1 {[%emt 0:00:30]} Ne3 {[%emt 0:00:30]} 20. Nxe3 {[%emt 0:00:30]} Bxe3 {[%emt 0:00:30]} 21. e5 {[%emt 0:00:30]} f5 {[%emt 0:00:30]} 22. exf6 {[%emt 0:00:30]} Qf5 {[%emt 0:00:30]} 23. h3 {[%emt 0:00:30]} Qxf6 {[%emt 0:00:30]} 24. Ne4 {[%emt 0:00:30]} Qd8 {[%emt 0:00:30] [#]} (24... Rxe4 $16 {was necessary.} 25. Bxe4 Bf5) 25. f5 $18 {[%emt 0:00:30]} Bxf5 {[%emt 0:00:30]} 26. Nxd6 {[%emt 0:00:30]} Bc2 {[%emt 0:00:30]} 27. Qe1 {[%emt 0:00:30]} Re7 {[%emt 0:00:30]} 28. Bg4 {[%emt 0:00:30]} Nxd5 {[%emt 0:00:30]} 29. Qe2 {[%emt 0:00:30]} Bf4 {[%emt 0:00:30]} 30. Be6+ {[%emt 0:00:30]} Kg7 {[%emt 0:00:30]} 31. Bxf4 {[%emt 0:00:30]} 1-0

[Event "10th LCC FIDE Open 2018"]
[Site "London"]
[Date "2018.12.10"]
[Round "2"]
[White "Merriman, John"]
[Black "Lochte, Szilvia"]
[Result "1-0"]
[ECO "D10"]
[WhiteElo "2261"]
[BlackElo "1843"]
[Annotator "RC"]
[PlyCount "63"]
[EventDate "2018.12.09"]
[EventType "swiss"]
[EventCountry "ENG"]
[SourceTitle "playchess.com"]
[Source "ChessBase"]
[SourceQuality "1"]
[TimeControl "40/5400+30:1800+30"]

1. d4 {[%emt 0:00:00]} d5 {[%emt 0:00:00]} 2. c4 {[%emt 0:00:00]} c6 {[%emt 0:00:00]} 3. Nc3 {[%emt 0:00:16]} Nf6 {[%emt 0:00:00]} 4. e3 {[%emt 0:00:29]} a6 {[%emt 0:00:35]} 5. c5 {[%emt 0:06:01]} Bf5 {[%emt 0:03:01]} 6. Nf3 {[%emt 0:01:25]} e6 {[%emt 0:05:10]} 7. Qb3 {[%emt 0:16:16]} Ra7 {[%emt 0:10:20]} 8. Nh4 {[%emt 0:05:15]} Bg4 {[%emt 0:12:37]} 9. h3 {[%emt 0:00:43]} Bh5 {[%emt 0:00:09]} 10. g4 {[%emt 0:01:04]} Nfd7 {[%emt 0:16:11]} 11. Ng2 {[%emt 0:05:05]} Bg6 {[%emt 0:00:11]} 12. Nf4 {[%emt 0:00:25]} b6 {[%emt 0:02:52]} 13. cxb6 {[%emt 0:16:43]} Nxb6 {[%emt 0:10:15]} 14. h4 {[%emt 0:01:11]} c5 {[%emt 0:17:17]} 15. dxc5 {[%emt 0:05:32]} Bxc5 {[%emt 0:01:26]} 16. h5 {[%emt 0:00:23]} Be4 {[%emt 0:02:03]} 17. Nxe4 {[%emt 0:00:46]} dxe4 {[%emt 0:00:05]} 18. Bd2 {[%emt 0:03:04]} e5 {[%emt 0:05:33]} 19. Ne2 {[%emt 0:00:42]} N8d7 {[%emt 0:03:07]} 20. Ng3 {[%emt 0:04:03]} Nf6 {[%emt 0:05:34]} 21. g5 {[%emt 0:02:20]} Ng4 {[%emt 0:01:58]} 22. Nxe4 {[%emt 0:02:11]} Be7 {[%emt 0:01:17]} 23. Rd1 {[%emt 0:11:59]} Nd7 {[%emt 0:00:58]} 24. Bh3 {[%emt 0:05:07]} f5 {[%emt 0:00:28]} 25. gxf6 {[%emt 0:00:23]} Ngxf6 {[%emt 0:00:22]} 26. Ng5 {[%emt 0:00:52]} Nd5 {[%emt 0:00:50]} 27. Qxd5 {[%emt 0:02:18]} Bxg5 {[%emt 0:00:12]} 28. Bc3 {[%emt 0:02:18]} Qe7 {[%emt 0:00:51]} 29. Bxd7+ {[%emt 0:01:36]} Rxd7 {[%emt 0:00:19]} 30. Qxd7+ {[%emt 0:00:27]} Qxd7 {[%emt 0:00:05]} 31. Rd4 Qd5 32. Rxd5 {[%emt 0:05:52] Kd7} 1-0

[Event "10th LCC FIDE Open 2018"]
[Site "London"]
[Date "2018.12.10"]
[Round "2"]
[White "Sperling, Lennart"]
[Black "Kueppers, Timo"]
[Result "1/2-1/2"]
[ECO "A07"]
[WhiteElo "2116"]
[BlackElo "2320"]
[Annotator "NA RC"]
[PlyCount "21"]
[EventDate "2018.12.09"]
[EventType "swiss"]
[EventCountry "ENG"]
[SourceTitle "playchess.com"]
[Source "ChessBase"]
[SourceQuality "1"]
[TimeControl "40/5400+30:1800+30"]

1. Nf3 {[%emt 0:00:00]} Nf6 {[%emt 0:00:00]} 2. g3 {[%emt 0:00:00]} d5 {[%emt 0:00:00]} 3. Bg2 {[%emt 0:00:02]} Bf5 {[%emt 0:00:00]} 4. c4 {[%emt 0:00:23]} e6 {[%emt 0:01:07]} 5. Qb3 {[%emt 0:02:54]} Nc6 {[%emt 0:05:21]} 6. Qxb7 {[%emt 0:08:54]} Nb4 {[%emt 0:00:30]} 7. Nd4 {[%emt 0:00:59]} Rb8 {[%emt 0:04:06]} 8. Qxa7 {[%emt 0:00:15]} Ra8 {[%emt 0:00:13]} 9. Qb7 {[%emt 0:00:19]} Rb8 {[%emt 0:01:57]} 10. Qa7 {[%emt 0:00:12]} Ra8 {[%emt 0:00:04]} 11. Qb7 {[%emt 0:00:07]} 1/2-1/2

[Event "10th LCC FIDE Open 2018"]
[Site "London"]
[Date "2018.12.10"]
[Round "2"]
[White "Johnson, Daniel"]
[Black "Wu, Li"]
[Result "0-1"]
[ECO "E39"]
[WhiteElo "2111"]
[BlackElo "2317"]
[Annotator "NA RC"]
[PlyCount "92"]
[EventDate "2018.12.09"]
[EventType "swiss"]
[EventCountry "ENG"]
[SourceTitle "playchess.com"]
[Source "ChessBase"]
[SourceQuality "1"]
[TimeControl "40/5400+30:1800+30"]

{[%evp 13,88,-9,32767,32767,3,32767,32767,32767,8,-3,32767,0,8,0,0,-10,-2,32767,0,32767,32767,32767,32767,32767,32767,32767,-23,32767,32767,-20,-29,-41,32767,32767,32767,32767,32767,32767,32767,32767,32767,32767,2,0,168,132,490,117,32767,32767,222,32767,32767,32767,114,170,216,162,146,53,31,-20,32767,27,32767,0,40,-33,4,0,32767,13,0,32767,24,0,0]} 1. d4 {[%emt 0:14:06]} Nf6 {[%emt 0:00:00]} 2. c4 {[%emt 0:00:09]} e6 {[%emt 0:00:00]} 3. Nc3 {[%emt 0:00:07]} Bb4 {[%emt 0:00:11]} 4. Qc2 {[%emt 0:01:08]} O-O {[%emt 0:00:38]} 5. Nf3 {[%emt 0:00:53]} c5 {[%emt 0:11:14]} 6. dxc5 {[%emt 0:02:06]} Na6 {[%emt 0:01:38]} 7. g3 {[%emt 0:03:56]} Nxc5 {[%emt 0:02:12]} 8. Bg2 {[%emt 0:01:36]} Nce4 {[%emt 0:03:51]} 9. Bd2 {[%emt 0:02:11]} Nxd2 {[%emt 0:03:03]} 10. Nxd2 {[%emt 0:00:41]} a6 {[%emt 0:18:23]} 11. O-O {[%emt 0:05:10] LiveBook: 14 Games E39: Nimzo-Indian: Classical: 4...c5 5 dxc5 0-0} Rb8 {[%emt 0:01:41]} 12. e4 $146 {[%emt 0:08:05]} ({Predecessor:} 12. a3 Be7 13. Rfd1 Qc7 14. Rac1 d6 15. b4 Bd7 16. Qb3 Rfc8 17. h3 h6 18. Nce4 Nxe4 19. Bxe4 {0-1 (56) Annakov,B (2600)-Piket,J (2619) Internet 1999}) 12... d6 {[%emt 0:02:50]} 13. a3 {[%emt 0:06:28]} Bc5 {[%emt 0:02:17]} 14. Rad1 {[%emt 0:16:23]} Qc7 {[%emt 0:09:32]} 15. b4 {[%emt 0:10:14]} Ba7 {[%emt 0:00:53]} 16. h3 {[%emt 0:07:48]} Bd7 {[%emt 0:04:07]} 17. Qd3 {[%emt 0:03:53]} Rfd8 {[%emt 0:02:58]} 18. Kh2 {[%emt 0:01:43]} Rbc8 {[%emt 0:16:13]} 19. Rc1 {[%emt 0:02:35]} Qb8 {[%emt 0:03:13]} 20. a4 {[%emt 0:04:12]} e5 {[%emt 0:08:12]} 21. a5 {[%emt 0:06:07]} b6 {[%emt 0:04:03]} 22. axb6 {[%emt 0:00:26]} Qxb6 {[%emt 0:00:09]} 23. Rb1 {[%emt 0:00:29]} Bc6 {[%emt 0:01:17]} 24. Nd5 {[%emt 0:00:44]} Bxd5 {[%emt 0:01:29]} 25. exd5 {[%emt 0:00:34]} Qd4 {[%emt 0:01:22]} 26. Qe2 {[%emt 0:00:43]} h5 {[%emt 0:00:31]} 27. Rb3 {[%emt 0:00:28]} h4 {[%emt 0:00:18]} 28. Rd3 {[%emt 0:00:13]} hxg3+ $2 {[%emt 0:00:08]} (28... Qb2 $11) 29. fxg3 {[%emt 0:00:33]} Qb6 $11 {[%emt 0:00:08] [#] and Black has nothing to worry.} 30. Rb3 $2 {[%emt 0:00:38]} (30. Rdf3 $1 $18 {is the precise move to win.}) 30... Qd4 {[%emt 0:01:55]} 31. Rd3 {[%emt 0:00:11]} Qb2 $2 {[%emt 0:00:09]} 32. Rb3 {[%emt 0:00:51]} Qa2 {[%emt 0:00:32]} 33. g4 {[%emt 0:00:28]} Nh7 {[%emt 0:00:39]} ({Black should try} 33... e4 $14) 34. Be4 {[%emt 0:00:34]} Nf8 {[%emt 0:00:24]} (34... Rc7 $16 35. h4 Nf8) 35. Bb1 {[%emt 0:00:18]} Qa4 {[%emt 0:00:17]} 36. Rbf3 {[%emt 0:00:46]} (36. h4 $16) 36... Rc7 {[%emt 0:00:23]} 37. Rb3 {[%emt 0:00:32]} ({Better is} 37. c5 $14) 37... Bd4 {[%emt 0:00:42]} 38. Bd3 {[%emt 0:00:28]} Rb8 {[%emt 0:00:32]} 39. Rfb1 {[%emt 0:00:25]} Rcb7 {[%emt 0:00:25]} 40. b5 {[%emt 0:00:35]} (40. Bc2 $1 $14) 40... Nd7 {[%emt 0:00:48]} 41. Ne4 {[%emt 0:04:56]} Rb6 {[%emt 0:04:55]} 42. Rb4 {[%emt 0:09:27]} Qa3 {[%emt 0:02:22]} 43. R4b3 {[%emt 0:01:23]} Qa5 {[%emt 0:04:07]} 44. Qf3 {[%emt 0:04:47]} axb5 $11 {[%emt 0:03:56]} 45. cxb5 {[%emt 0:03:12]} Nc5 {[%emt 0:04:37]} 46. Ng5 {[%emt 0:06:23]} Qd2+ {[%emt 0:00:14] Qd1 [%emt 00:03:32]} 0-1

[Event "10th LCC FIDE Open 2018"]
[Site "London"]
[Date "2018.12.10"]
[Round "2"]
[White "Merriman, James"]
[Black "Ronka, Erik"]
[Result "0-1"]
[ECO "D44"]
[WhiteElo "1696"]
[BlackElo "2281"]
[Annotator "RC"]
[PlyCount "52"]
[EventDate "2018.12.09"]
[EventType "swiss"]
[EventCountry "ENG"]
[SourceTitle "playchess.com"]
[Source "ChessBase"]
[SourceQuality "1"]
[TimeControl "40/5400+30:1800+30"]

1. d4 {[%emt 0:04:06]} d5 {[%emt 0:00:00]} 2. c4 {[%emt 0:00:05]} c6 {[%emt 0:00:00]} 3. Nc3 {[%emt 0:00:08]} Nf6 {[%emt 0:00:24]} 4. Nf3 {[%emt 0:00:06]} e6 {[%emt 0:00:33]} 5. Bg5 {[%emt 0:00:17]} dxc4 {[%emt 0:00:10]} 6. e4 {[%emt 0:00:39]} b5 {[%emt 0:00:10]} 7. e5 {[%emt 0:02:34]} h6 {[%emt 0:00:07]} 8. Bh4 {[%emt 0:00:56]} g5 {[%emt 0:00:03]} 9. Nxg5 {[%emt 0:00:17]} hxg5 {[%emt 0:00:06]} 10. Bxg5 {[%emt 0:00:09]} Nbd7 {[%emt 0:00:07]} 11. g3 {[%emt 0:01:15]} Qb6 {[%emt 0:00:47]} 12. exf6 {[%emt 0:00:29]} Bb7 {[%emt 0:00:15]} 13. Bg2 {[%emt 0:01:12]} O-O-O {[%emt 0:00:08]} 14. O-O {[%emt 0:01:07]} c5 {[%emt 0:00:05]} 15. d5 {[%emt 0:18:10]} b4 {[%emt 0:00:06]} 16. Na4 {[%emt 0:00:51]} Qb5 {[%emt 0:00:26]} 17. dxe6 {[%emt 0:02:47]} Bxg2 {[%emt 0:05:07]} 18. Kxg2 {[%emt 0:01:40]} Qc6+ {[%emt 0:00:23]} 19. Qf3 {[%emt 0:04:29]} Rxh2+ {[%emt 0:02:38]} 20. Kxh2 {[%emt 0:01:45]} Qxf3 {[%emt 0:00:03]} 21. exd7+ {[%emt 0:02:40]} Kxd7 {[%emt 0:03:06]} 22. Rae1 {[%emt 0:12:57]} Bd6 {[%emt 0:04:00]} 23. Bh4 {[%emt 0:01:37]} Rh8 {[%emt 0:01:17]} 24. Kh3 {[%emt 0:03:00]} Qf5+ {[%emt 0:00:46]} 25. Kg2 {[%emt 0:00:49]} Rxh4 {[%emt 0:00:47]} 26. gxh4 {[%emt 0:03:22]} Qg4+ {[%emt 0:00:08]} 0-1